bitfinex/quotes_BTCUSD_20241222
["timestamp","ask_amount","ask_price","bid_price","bid_amount"]
[1734844993615,0.59156224,96115.0,96114.0,8.637e-05]
[1734844993811,0.39156224,96115.0,96114.0,8.637e-05]
[1734844993985,0.50056224,96115.0,96114.0,8.637e-05]
[1734844994538,0.490084,96115.0,96114.0,8.637e-05]
[1734844994736,0.484084,96115.0,96114.0,8.637e-05]
[1734844995162,0.491084,96115.0,96114.0,8.637e-05]
[1734844995276,0.484084,96115.0,96114.0,8.637e-05]
[1734844995746,0.485084,96115.0,96114.0,8.637e-05]
[1734844995943,0.6863924,96115.0,96114.0,8.637e-05]
[1734844996186,0.6893924,96115.0,96114.0,8.637e-05]
[1734844996800,0.6863924,96115.0,96114.0,8.637e-05]
[1734844996932,0.6883924,96115.0,96114.0,8.637e-05]
[1734844997369,0.6843924,96115.0,96114.0,8.637e-05]
[1734844997519,0.6823924,96115.0,96114.0,8.637e-05]
[1734844997718,0.6883924,96115.0,96114.0,8.637e-05]
[1734844998029,0.6853924,96115.0,96114.0,8.637e-05]
[1734844998226,0.6923924,96115.0,96114.0,8.637e-05]
[1734844998455,0.6853924,96115.0,96114.0,8.637e-05]
[1734844998873,0.6913924,96115.0,96114.0,8.637e-05]
[1734844999073,0.6853924,96115.0,96114.0,8.637e-05]
[1734844999425,0.6913924,96115.0,96114.0,8.637e-05]
[1734844999875,0.71049481,96115.0,96114.0,8.637e-05]
[1734845000270,0.70749481,96115.0,96114.0,8.637e-05]
[1734845000634,0.71049481,96115.0,96114.0,8.637e-05]
[1734845000831,0.6913924,96115.0,96114.0,8.637e-05]
[1734845001037,0.6883924,96115.0,96114.0,8.637e-05]
[1734845001200,0.6823924,96115.0,96114.0,8.637e-05]
[1734845001396,0.6853924,96115.0,96114.0,8.637e-05]
[1734845001810,0.6913924,96115.0,96114.0,8.637e-05]
[1734845002268,0.6853924,96115.0,96114.0,8.637e-05]
[1734845002476,0.6823924,96115.0,96114.0,8.637e-05]
[1734845002720,0.6893924,96115.0,96114.0,8.637e-05]
[1734845002908,0.6823924,96115.0,96114.0,8.637e-05]
[1734845003295,0.6883924,96115.0,96114.0,8.637e-05]
[1734845003949,0.390084,96115.0,96114.0,8.637e-05]
[1734845004125,0.367084,96115.0,96114.0,8.637e-05]
[1734845004330,0.217084,96115.0,96114.0,8.637e-05]
[1734845004540,0.208084,96115.0,96114.0,8.637e-05]
[1734845004739,0.217084,96115.0,96114.0,8.637e-05]
[1734845004951,0.211084,96115.0,96114.0,8.637e-05]
[1734845005358,0.2402554,96115.0,96114.0,8.637e-05]
[1734845005485,0.2312554,96115.0,96114.0,8.637e-05]
[1734845005891,0.2402554,96115.0,96114.0,8.637e-05]
[1734845006131,0.2342554,96115.0,96114.0,8.637e-05]
[1734845007046,0.2402554,96115.0,96114.0,8.637e-05]
[1734845007244,0.2372554,96115.0,96114.0,8.637e-05]
[1734845007451,0.2402554,96115.0,96114.0,8.637e-05]
[1734845008281,0.0031714,96115.0,96114.0,0.08038637]
[1734845008670,0.0091714,96115.0,96114.0,0.08038637]
[1734845008864,0.0031714,96115.0,96114.0,0.08038637]
[1734845009066,0.0001714,96115.0,96114.0,0.08038637]
[1734845009260,0.0031714,96115.0,96114.0,0.08038637]
[1734845009827,0.0271714,96115.0,96114.0,0.08238637]
[1734845010062,0.0231714,96115.0,96114.0,0.08038637]
[1734845010254,0.0001714,96115.0,96114.0,0.08038637]
[1734845010489,0.0011714,96115.0,96114.0,0.08038637]
[1734845011098,0.0001714,96115.0,96114.0,0.08038637]
[1734845011292,0.0011714,96115.0,96114.0,0.08038637]
[1734845011616,0.0251714,96115.0,96114.0,0.08238637]
[1734845011749,0.0001714,96115.0,96114.0,0.08038637]
[1734845011950,0.0001714,96115.0,96114.0,0.13008637]
[1734845011951,0.0021714,96115.0,96114.0,0.13008637]
[1734845012164,0.208047,96132.0,96116.0,0.0803]
[1734845012369,0.208058,96127.0,96116.0,0.0803]
[1734845012592,0.20806,96126.0,96116.0,0.0803]
[1734845013397,0.208072,96121.0,96116.0,0.0803]
[1734845014328,0.023,96120.0,96116.0,0.0803]
[1734845014514,0.208075,96119.0,96116.0,0.0803]
[1734845014734,0.208075,96119.0,96116.0,0.0823]
[1734845015050,0.208075,96119.0,96116.0,0.0803]
[1734845015397,0.208075,96119.0,96116.0,0.0853]
[1734845015594,0.208079,96117.0,96116.0,0.0823]
[1734845015800,0.231079,96117.0,96116.0,0.0803]
[1734845016145,0.231079,96117.0,96116.0,0.0833]
[1734845016317,0.231079,96117.0,96116.0,0.0803]
[1734845016655,0.208084,96115.0,96114.0,8.637e-05]
[1734845016942,0.231084,96115.0,96114.0,8.637e-05]
[1734845019335,0.6833924,96115.0,96114.0,8.637e-05]
[1734845020456,0.6823924,96115.0,96114.0,8.637e-05]
[1734845020924,0.6833924,96115.0,96114.0,8.637e-05]
[1734845021129,0.6823924,96115.0,96114.0,8.637e-05]
[1734845021495,0.6833924,96115.0,96114.0,8.637e-05]
[1734845021697,0.6823924,96115.0,96114.0,8.637e-05]
[1734845022159,0.6873924,96115.0,96114.0,8.637e-05]
[1734845022296,0.6823924,96115.0,96114.0,8.637e-05]
[1734845022505,0.6853924,96115.0,96114.0,8.637e-05]
[1734845023947,0.6933924,96115.0,96114.0,8.637e-05]
[1734845024383,0.6953924,96115.0,96114.0,8.637e-05]
[1734845024503,0.6823924,96115.0,96114.0,8.637e-05]
[1734845024715,0.6843924,96115.0,96114.0,8.637e-05]
[1734845024905,0.491084,96115.0,96114.0,8.637e-05]
[1734845025263,0.489084,96115.0,96114.0,8.637e-05]
[1734845025461,0.5903924,96115.0,96114.0,8.637e-05]
[1734845025637,0.6933924,96115.0,96114.0,8.637e-05]
[1734845026050,0.6903924,96115.0,96114.0,8.637e-05]
[1734845026452,0.6933924,96115.0,96114.0,8.637e-05]
[1734845026662,0.6853924,96115.0,96114.0,8.637e-05]
[1734845027063,0.6913924,96115.0,96114.0,8.637e-05]
[1734845027854,0.2,96112.0,96111.0,0.0002712]
[1734845028061,0.4743084,96112.0,96111.0,0.0002712]
[1734845029565,0.4763084,96112.0,96111.0,0.0002712]
[1734845030507,0.4813084,96112.0,96111.0,0.0002712]
[1734845030708,0.50223273,96112.0,96111.0,0.0002712]
[1734845031893,1.02709115,96112.0,96111.0,0.0002712]
[1734845032097,1.03746359,96112.0,96111.0,0.0002712]
[1734845034435,0.85324128,96112.0,96111.0,0.0002712]
[1734845037209,1.03787291,96112.0,96111.0,0.0002712]
[1734845038993,1.03787291,96112.0,96111.0,2e-07]
[1734845039317,0.581112,96102.0,96101.0,8e-07]
[1734845039521,0.6824204,96102.0,96101.0,8e-07]
[1734845041823,1.26413122,96102.0,96101.0,8e-07]
[1734845042903,1.27113122,96102.0,96101.0,8e-07]
[1734845043115,1.26413122,96102.0,96101.0,8e-07]
[1734845043262,0.69997196,96102.0,96101.0,8e-07]
[1734845043657,0.69597196,96102.0,96101.0,8e-07]
[1734845044111,0.70297196,96102.0,96101.0,8e-07]
[1734845044754,0.84136392,96102.0,96101.0,8e-07]
[1734845045124,0.2,96098.0,96097.0,1e-06]
[1734845045323,0.4743084,96098.0,96097.0,1e-06]
[1734845047049,0.4763084,96098.0,96097.0,1e-06]
[1734845047257,0.4823084,96098.0,96097.0,1e-06]
[1734845047879,0.82271856,96098.0,96097.0,1e-06]
[1734845048535,0.81471856,96098.0,96097.0,1e-06]
[1734845048754,0.82071856,96098.0,96097.0,1e-06]
[1734845048940,0.82271856,96098.0,96097.0,1e-06]
[1734845050139,0.408146,96086.0,96081.0,8.57e-05]
[1734845050339,0.6824544,96086.0,96081.0,8.57e-05]
[1734845052806,0.09208251,96092.0,96086.0,0.0801]
[1734845053034,0.09208251,96092.0,96087.0,0.0492]
[1734845053268,0.13812376,96094.0,96088.0,0.0801]
[1734845053269,0.20813,96094.0,96088.0,0.0801]
[1734845053473,0.41626,96094.0,96090.0,0.0773]
[1734845053674,0.20813,96094.0,96090.0,0.0773]
[1734845054885,0.008,96092.0,96091.0,0.0487]
[1734845055217,0.01922774,96098.0,96092.0,0.0773]
[1734845055364,0.208114,96101.0,96092.0,0.0773]
[1734845055569,0.208114,96101.0,96093.0,0.0487]
[1734845055792,0.208114,96101.0,96095.0,0.0487]
[1734845055956,0.00033496,96102.0,96097.0,0.0487]
[1734845056170,0.00033496,96102.0,96099.0,0.0487]
[1734845056341,0.00033496,96102.0,96100.0,0.0773]
[1734845056551,0.00033496,96102.0,96101.0,0.0487]
[1734845056756,0.208062,96125.0,96103.0,0.0487]
[1734845057012,0.208062,96125.0,96104.0,0.0773]
[1734845057219,0.01922794,96114.0,96105.0,0.1013084]
[1734845057419,0.01922794,96114.0,96108.0,0.0773]
[1734845057628,0.208062,96125.0,96107.0,0.208101]
[1734845057845,0.208062,96125.0,96109.0,0.0773]
[1734845058221,0.01921767,96124.0,96109.0,0.0773]
[1734845058622,0.01921767,96124.0,96110.0,0.256794]
[1734845058803,0.01921767,96125.0,96111.0,0.0773]
[1734845059204,0.20806,96126.0,96111.0,0.0773]
[1734845059404,0.2082434,96121.0,96111.0,0.0773]
[1734845060168,0.0001714,96121.0,96111.0,0.0773]
[1734845060572,0.0001714,96121.0,96113.0,0.126]
[1734845060778,0.0001714,96121.0,96114.0,0.285386]
[1734845060957,0.0001714,96121.0,96115.0,0.3093924]
[1734845061134,0.0001714,96121.0,96120.0,0.334073]
[1734845061339,0.0001714,96121.0,96120.0,0.4353814]
[1734845062522,0.01921767,96147.0,96120.0,0.1043084]
[1734845062747,0.01938152,96147.0,96132.0,0.208046]
[1734845062951,0.01938152,96147.0,96133.0,0.0773]
[1734845063209,0.00016385,96147.0,96133.0,0.0773]
[1734845063363,0.208016,96146.0,96133.0,0.0773]
[1734845063527,0.00016385,96147.0,96134.0,0.208042]
[1734845063733,0.00016385,96147.0,96135.0,0.0773]
[1734845063947,0.00016385,96147.0,96136.0,0.0487]
[1734845064155,0.00016385,96147.0,96138.0,0.0773]
[1734845064362,0.00016385,96147.0,96146.0,0.208016]
[1734845064627,0.00016385,96147.0,96146.0,0.285316]
[1734845064766,0.00016385,96147.0,96146.0,0.0773]
[1734845064954,0.00033545,96147.0,96146.0,0.0773]
[1734845065171,0.00233545,96147.0,96146.0,0.333216]
[1734845065547,0.01921767,96163.0,96162.0,0.28928]
[1734845065828,0.01921767,96163.0,96162.0,0.33718]
[1734845066057,0.00054595,96170.0,96167.0,0.207969]
[1734845066397,0.00054595,96170.0,96168.0,0.0813]
[1734845066588,0.00054595,96170.0,96169.0,0.207967]
[1734845067131,0.00054595,96170.0,96168.0,0.0813]
[1734845067292,0.00054595,96170.0,96169.0,0.207967]
[1734845067489,0.00054595,96170.0,96169.0,0.289267]
[1734845067718,0.00054595,96170.0,96169.0,0.4384754]
[1734845067918,0.01911274,96193.0,96175.0,0.289254]
[1734845068101,0.00033509,96176.0,96175.0,0.3905624]
[1734845068494,0.0001714,96197.0,96195.0,0.1292]
[1734845068725,0.0001714,96197.0,96196.0,0.207908]
[1734845069867,0.0001714,96212.0,96197.0,0.0813]
[1734845070073,0.00033506,96209.0,96208.0,0.207882]
[1734845070285,0.00033506,96209.0,96208.0,0.3904904]
[1734845070490,0.00033506,96209.0,96208.0,0.4383904]
[1734845070702,0.00033506,96209.0,96208.0,0.5883904]
[1734845070910,0.0001714,96212.0,96209.0,0.15]
[1734845071118,0.0001714,96212.0,96210.0,0.10234763]
[1734845071343,0.0001714,96212.0,96210.0,0.31022563]
[1734845071593,0.0001714,96218.0,96217.0,0.207863]
[1734845071790,0.0001714,96218.0,96217.0,0.5883714]
[1734845072995,0.0001714,96218.0,96217.0,0.5893714]
[1734845073563,0.0001714,96218.0,96217.0,0.5883714]
[1734845073781,0.0001714,96218.0,96217.0,0.5903714]
[1734845073966,0.0001714,96218.0,96217.0,0.2325084]
[1734845074368,0.0001714,96218.0,96217.0,0.2385084]
[1734845074796,0.0001714,96218.0,96217.0,0.2325084]
[1734845075759,0.0021714,96218.0,96217.0,0.2305084]
[1734845075962,0.0001714,96218.0,96217.0,0.2305084]
[1734845076164,0.0001714,96218.0,96217.0,0.2365084]
[1734845076476,0.0001714,96218.0,96217.0,0.2355084]
[1734845076883,0.0001714,96218.0,96217.0,0.2375084]
[1734845077481,0.0001714,96218.0,96217.0,0.2305084]
[1734845077821,0.0011714,96218.0,96217.0,0.2395084]
[1734845079075,0.0011714,96218.0,96217.0,0.2385084]
[1734845079602,0.0011714,96218.0,96217.0,0.2415084]
[1734845081574,0.0001714,96244.0,96217.0,0.3915084]
[1734845081801,0.0001714,96244.0,96226.0,0.289044]
[1734845081942,0.0001714,96244.0,96226.0,0.3903524]
[1734845082156,0.0001714,96244.0,96226.0,0.4391524]
[1734845082948,0.0001714,96244.0,96227.0,0.15]
[1734845083154,0.0001714,96244.0,96243.0,0.289007]
[1734845083155,0.00033503,96244.0,96243.0,0.289007]
[1734845083641,0.00033503,96244.0,96243.0,0.3903154]
[1734845084074,0.00033503,96244.0,96243.0,0.4391154]
[1734845084405,0.00033503,96244.0,96243.0,0.5891154]
[1734845085137,0.00033503,96244.0,96243.0,0.5931154]
[1734845085340,0.00033503,96244.0,96243.0,0.5891154]
[1734845085543,0.00033503,96244.0,96243.0,0.59977346]
[1734845086146,0.00033503,96244.0,96243.0,0.60177346]
[1734845086715,0.00033503,96244.0,96243.0,0.59977346]
[1734845088631,0.0001,96269.0,96252.0,0.1]
[1734845088822,0.00071671,96267.0,96266.0,0.357757]
[1734845089028,0.00071671,96267.0,96266.0,0.5402654]
[1734845089242,8.57e-05,96279.0,96278.0,0.438931]
[1734845089447,0.0001,96289.0,96288.0,0.20771]
[1734845089640,0.00026352,96289.0,96288.0,0.3090184]
[1734845089864,0.00026352,96289.0,96288.0,0.3578184]
[1734845090074,0.00026352,96289.0,96288.0,0.5078184]
[1734845091898,0.00026352,96289.0,96288.0,0.51813368]
[1734845094511,0.00026352,96289.0,96288.0,0.52013368]
[1734845095480,0.00026352,96289.0,96288.0,0.52113368]
[1734845096250,0.00026352,96289.0,96288.0,0.52013368]
[1734845096481,0.00026352,96289.0,96288.0,0.52113368]
[1734845096989,0.0001714,96324.0,96290.0,0.0811]
[1734845097171,0.0001714,96324.0,96305.0,0.207673]
[1734845097371,0.0001714,96324.0,96305.0,0.3089814]
[1734845098811,0.0001714,96324.0,96305.0,0.3169814]
[1734845099006,0.0001714,96324.0,96305.0,0.32734188]
[1734845100314,0.0001714,96324.0,96305.0,0.48034188]
[1734845102206,0.207635,96323.0,96305.0,0.33034188]
[1734845102345,0.0001714,96324.0,96305.0,0.33034188]
[1734845103181,0.2078044,96324.0,96305.0,0.33034188]
[1734845104438,0.0001714,96324.0,96305.0,0.33034188]
[1734845107624,0.207635,96323.0,96305.0,0.33034188]
[1734845108859,0.41527,96323.0,96305.0,0.33034188]
[1734845109261,0.207635,96323.0,96305.0,0.33034188]
[1734845109435,0.0001714,96324.0,96305.0,0.33034188]
[1734845110023,0.0001714,96324.0,96305.0,0.41144188]
[1734845114935,0.0001714,96324.0,96308.0,0.388267]
[1734845115141,0.0001714,96324.0,96308.0,0.6395754]
[1734845115332,0.0001714,96324.0,96308.0,0.7395754]
[1734845115736,0.0001714,96324.0,96308.0,0.6395754]
[1734845115965,0.0001714,96324.0,96308.0,0.7395754]
[1734845117520,0.0001714,96324.0,96308.0,0.76366944]
[1734845117721,0.0001714,96324.0,96308.0,0.76066944]
[1734845117893,0.0001714,96324.0,96308.0,0.76166944]
[1734845118145,0.0001714,96324.0,96308.0,0.79788437]
[1734845118292,0.0001714,96324.0,96308.0,0.76466944]
[1734845118491,0.0001714,96324.0,96308.0,0.76666944]
[1734845118703,0.0001714,96324.0,96308.0,0.79889677]
[1734845119525,0.0001714,96324.0,96308.0,0.76666944]
[1734845119865,0.0001714,96324.0,96308.0,0.79291019]
[1734845120305,0.0001714,96324.0,96308.0,0.79891019]
[1734845120574,0.0001714,96324.0,96308.0,1.32923839]
[1734845120786,0.0001714,96324.0,96308.0,1.33523839]
[1734845121066,0.0001714,96324.0,96308.0,1.33823839]
[1734845121476,0.0001714,96324.0,96308.0,1.33523839]
[1734845121901,0.0001714,96324.0,96308.0,1.11714435]
[1734845122107,0.0001714,96324.0,96308.0,1.1849036]
[1734845122308,0.0001714,96324.0,96308.0,1.21718175]
[1734845122912,0.0001714,96324.0,96308.0,1.11418175]
[1734845123132,0.0001714,96324.0,96308.0,1.10818175]
[1734845123268,0.0001714,96324.0,96308.0,1.11318175]
[1734845123469,0.2078054,96324.0,96308.0,0.7232366]
[1734845123768,0.0001714,96324.0,96308.0,0.7232366]
[1734845124262,0.2078054,96324.0,96308.0,0.7312366]
[1734845124483,0.2078054,96324.0,96308.0,0.6506366]
[1734845124702,0.207644,96319.0,96308.0,0.6406366]
[1734845124916,0.207644,96319.0,96308.0,0.6376366]
[1734845125131,0.415312,96313.0,96308.0,0.003]
[1734845125757,0.415312,96313.0,96308.0,0.002]
[1734845125929,0.023,96312.0,96308.0,0.002]
[1734845126285,0.207667,96308.0,96306.0,0.0001712]
[1734845127846,0.0001,96309.0,96306.0,0.0001712]
[1734845128249,0.0001,96309.0,96308.0,0.002]
[1734845128665,0.207667,96308.0,96306.0,0.0001712]
[1734845129735,0.023,96307.0,96306.0,0.0001712]
[1734845130790,0.04223907,96307.0,96306.0,0.0001712]
[1734845131718,0.023,96307.0,96306.0,0.0001712]
[1734845132109,0.0763,96307.0,96306.0,0.0001712]
[1734845132310,0.0783,96307.0,96306.0,0.0001712]
[1734845132718,0.0763,96307.0,96306.0,0.0001712]
[1734845132943,0.09552312,96307.0,96306.0,0.0001712]
[1734845133126,0.09752312,96307.0,96306.0,0.0001712]
[1734845133565,0.04422312,96307.0,96306.0,0.0001712]
[1734845133981,0.24553152,96307.0,96306.0,0.0001712]
[1734845134122,0.49553152,96307.0,96306.0,0.0001712]
[1734845134347,0.5276084,96307.0,96306.0,0.0001712]
[1734845134680,0.207705,96290.0,96289.0,0.0001712]
[1734845135035,0.230705,96290.0,96289.0,0.0001712]
[1734845135840,0.24990683,96290.0,96289.0,0.0001712]
[1734845137302,0.24990683,96290.0,96289.0,0.0011712]
[1734845137502,0.24990683,96290.0,96289.0,0.0001712]
[1734845137653,0.50451523,96290.0,96289.0,0.0001712]
[1734845139703,0.50651523,96290.0,96289.0,0.0001712]
[1734845140727,0.30520683,96290.0,96289.0,0.0001712]
[1734845140936,0.25190683,96290.0,96289.0,0.0001712]
[1734845141139,0.24990683,96290.0,96289.0,0.0001712]
[1734845141534,0.232705,96290.0,96289.0,0.0001712]
[1734845141735,0.3340134,96290.0,96289.0,0.0001712]
[1734845141917,0.3320134,96290.0,96289.0,0.0001712]
[1734845142374,0.35321523,96290.0,96289.0,0.0001712]
[1734845142696,0.35121523,96290.0,96289.0,0.0001712]
[1734845143747,0.3320134,96290.0,96289.0,0.0001712]
[1734845143919,0.4820134,96290.0,96289.0,0.0001712]
[1734845144737,0.4840134,96290.0,96289.0,0.0001712]
[1734845150101,0.6840134,96290.0,96289.0,2e-07]
[1734845150513,0.7373134,96290.0,96289.0,2e-07]
[1734845151686,0.1,96270.0,96246.0,0.0774]
[1734845151979,0.023,96252.0,96246.0,0.00054531]
[1734845152144,0.207794,96249.0,96246.0,0.00054531]
[1734845152353,0.415588,96249.0,96246.0,0.00054531]
[1734845153079,0.415588,96249.0,96246.0,0.00154531]
[1734845153404,0.415588,96249.0,96246.0,0.00054531]
[1734845153643,0.415588,96249.0,96246.0,0.00254531]
[1734845156735,0.207778,96257.0,96246.0,0.00254531]
[1734845156984,0.207775,96258.0,96248.0,0.0456]
[1734845157351,0.20778,96256.0,96248.0,0.0456]
[1734845157864,0.41556,96256.0,96248.0,0.0456]
[1734845158723,0.20778,96256.0,96248.0,0.0456]
[1734845158938,0.207781,96255.0,96248.0,0.0456]
[1734845159346,0.207794,96249.0,96248.0,0.0456]
[1734845159909,0.207794,96249.0,96248.0,0.0457712]
[1734845161874,0.207794,96249.0,96248.0,0.0477712]
[1734845162319,0.207794,96249.0,96248.0,0.0021712]
[1734845165718,0.1,96278.0,96248.0,0.0021712]
[1734845165917,0.207742,96273.0,96251.0,0.0817]
[1734845166117,0.254389,96298.0,96250.0,0.0465]
[1734845166118,0.207754,96268.0,96254.0,0.207782]
[1734845166296,0.207754,96268.0,96255.0,0.18404718]
[1734845166597,0.207722,96283.0,96255.0,0.18404718]
[1734845166970,0.207754,96268.0,96255.0,0.18404718]
[1734845167351,0.207746,96272.0,96255.0,0.39182718]
[1734845167555,0.207712,96287.0,96259.0,0.0817]
[1734845167753,0.002,96290.0,96263.0,0.1282]
[1734845168038,0.002,96290.0,96276.0,0.207735]
[1734845168172,0.002,96290.0,96277.0,0.0817]
[1734845168173,0.207708,96289.0,96277.0,0.0817]
[1734845168561,0.207708,96289.0,96278.0,0.0465]
[1734845168958,0.002,96287.0,96278.0,0.0465]
[1734845169279,0.207708,96289.0,96278.0,0.04666352]
[1734845169481,0.209708,96289.0,96278.0,0.04666352]
[1734845170054,0.002,96289.0,96279.0,0.0817]
[1734845170184,0.002,96289.0,96281.0,0.207725]
[1734845170383,0.002,96289.0,96283.0,0.20772]
[1734845170591,0.002,96289.0,96284.0,0.10234685]
[1734845171355,0.002,96290.0,96284.0,0.10234685]
[1734845171487,0.002,96287.0,96284.0,0.10234685]
[1734845171888,0.002,96290.0,96284.0,0.1013084]
[1734845172320,0.002,96290.0,96284.0,0.1043084]
[1734845172569,0.207711,96288.0,96282.0,0.0817]
[1734845172723,0.207729,96279.0,96278.0,0.00016352]
[1734845175424,8.56e-05,96289.0,96279.0,0.0822]
[1734845175553,8.56e-05,96289.0,96281.0,0.0822]
[1734845175761,8.56e-05,96289.0,96288.0,0.2773]
[1734845175947,8.56e-05,96289.0,96288.0,0.3786084]
[1734845178282,8.56e-05,96289.0,96288.0,0.39387553]
[1734845178715,8.56e-05,96289.0,96288.0,0.3786084]
[1734845179137,8.56e-05,96289.0,96288.0,0.3826084]
[1734845179393,8.56e-05,96289.0,96288.0,0.3786084]
[1734845180721,8.56e-05,96289.0,96288.0,0.3846084]
[1734845181264,8.56e-05,96289.0,96288.0,0.3786084]
[1734845181464,8.56e-05,96289.0,96288.0,0.3816084]
[1734845181664,8.56e-05,96289.0,96288.0,0.3786084]
[1734845182190,8.56e-05,96289.0,96288.0,0.3806084]
[1734845183660,8.56e-05,96289.0,96288.0,0.3846084]
[1734845183865,8.56e-05,96289.0,96288.0,0.3826084]
[1734845184124,8.56e-05,96289.0,96288.0,0.3866084]
[1734845184328,8.56e-05,96289.0,96288.0,0.3826084]
[1734845184532,8.56e-05,96289.0,96288.0,0.3816084]
[1734845184747,8.56e-05,96289.0,96288.0,0.3836084]
[1734845185472,8.56e-05,96289.0,96288.0,0.3837796]
[1734845186333,8.56e-05,96289.0,96288.0,0.3807796]
[1734845186755,8.56e-05,96289.0,96288.0,0.3847796]
[1734845187050,8.56e-05,96289.0,96288.0,0.3827796]
[1734845187251,8.56e-05,96289.0,96288.0,0.3867796]
[1734845189898,8.56e-05,96289.0,96288.0,0.2367796]
[1734845190458,8.56e-05,96289.0,96288.0,0.2287796]
[1734845190659,8.56e-05,96289.0,96288.0,0.2307796]
[1734845190997,8.56e-05,96289.0,96288.0,0.2337796]
[1734845191615,8.56e-05,96289.0,96288.0,0.2317796]
[1734845191783,0.0010856,96289.0,96288.0,0.2317796]
[1734845192378,0.0010856,96289.0,96288.0,0.2287796]
[1734845192793,0.0010856,96289.0,96288.0,0.2297796]
[1734845193835,0.0010856,96289.0,96288.0,0.2287796]
[1734845194042,8.56e-05,96289.0,96288.0,0.2287796]
[1734845194337,8.56e-05,96289.0,96288.0,0.1856796]
[1734845195605,0.0010856,96289.0,96288.0,0.18471801]
[1734845195813,0.0010856,96289.0,96288.0,0.18571801]
[1734845196213,0.0010856,96289.0,96288.0,0.39342801]
[1734845196422,0.0010856,96289.0,96288.0,0.3913896]
[1734845196623,0.0010856,96289.0,96288.0,0.3963896]
[1734845197027,8.56e-05,96289.0,96288.0,0.3963896]
[1734845197246,8.56e-05,96289.0,96288.0,0.4023896]
[1734845197464,8.56e-05,96289.0,96288.0,0.3963896]
[1734845197655,8.56e-05,96289.0,96288.0,0.3913896]
[1734845197869,8.56e-05,96289.0,96288.0,0.3993896]
[1734845198610,8.56e-05,96289.0,96288.0,0.3913896]
[1734845198819,8.56e-05,96289.0,96288.0,0.1836796]
[1734845199228,8.56e-05,96289.0,96288.0,0.1866796]
[1734845199435,8.56e-05,96289.0,96288.0,0.1946796]
[1734845199676,8.56e-05,96289.0,96288.0,0.1916796]
[1734845200143,8.56e-05,96289.0,96288.0,0.1976796]
[1734845200511,8.56e-05,96289.0,96288.0,0.1916796]
[1734845200881,8.56e-05,96289.0,96288.0,0.1836796]
[1734845201088,8.56e-05,96289.0,96288.0,0.1966796]
[1734845201454,8.56e-05,96289.0,96288.0,0.1886796]
[1734845201634,8.56e-05,96289.0,96288.0,0.1946796]
[1734845201836,8.56e-05,96289.0,96288.0,0.0111712]
[1734845202791,8.56e-05,96289.0,96288.0,0.0061712]
[1734845203219,8.56e-05,96289.0,96288.0,0.0111712]
[1734845203759,8.56e-05,96289.0,96288.0,0.0001712]
[1734845203997,8.56e-05,96289.0,96288.0,0.0031712]
[1734845204202,8.56e-05,96289.0,96288.0,0.0061712]
[1734845204354,8.56e-05,96289.0,96288.0,0.0031712]
[1734845204566,8.56e-05,96289.0,96288.0,0.0001712]
[1734845204741,8.56e-05,96289.0,96288.0,0.0061712]
[1734845205082,8.56e-05,96289.0,96288.0,0.0031712]
[1734845205304,8.56e-05,96289.0,96288.0,0.0071712]
[1734845206145,8.56e-05,96289.0,96288.0,0.0041712]
[1734845206356,8.56e-05,96289.0,96288.0,0.0081712]
[1734845210050,0.0230856,96289.0,96288.0,0.0081712]
[1734845210477,0.0230856,96289.0,96288.0,0.0001712]
[1734845210675,0.0230856,96289.0,96288.0,0.0041712]
[1734845210891,0.04238373,96289.0,96288.0,0.0081712]
[1734845211831,0.01938373,96289.0,96288.0,0.0081712]
[1734845213110,0.01938373,96289.0,96288.0,0.0001712]
[1734845213343,0.01938373,96289.0,96288.0,0.0464712]
[1734845213536,0.01938373,96289.0,96288.0,0.0484712]
[1734845214052,0.01938373,96289.0,96288.0,0.0464712]
[1734845214852,8.56e-05,96289.0,96288.0,0.0484712]
[1734845215056,0.2077936,96289.0,96288.0,0.0061712]
[1734845215278,0.22709173,96289.0,96288.0,0.0061712]
[1734845216205,0.22709173,96289.0,96288.0,0.0041712]
[1734845216409,0.2077936,96289.0,96288.0,0.0001712]
[1734845216636,0.22708236,96289.0,96288.0,0.0071712]
[1734845216782,0.22708236,96289.0,96288.0,0.0041712]
[1734845217190,0.22708236,96289.0,96288.0,0.0001712]
[1734845217413,0.22708236,96289.0,96288.0,0.0021712]
[1734845220855,0.22708236,96289.0,96288.0,0.0001712]
[1734845221387,0.22708236,96289.0,96288.0,0.0011712]
[1734845222533,0.22708236,96289.0,96288.0,0.0001712]
[1734845222945,0.22908236,96289.0,96288.0,0.0001712]
[1734845223158,0.22808236,96289.0,96288.0,0.0001712]
[1734845223361,0.22708236,96289.0,96288.0,0.0001712]
[1734845223558,0.22908236,96289.0,96288.0,0.0011712]
[1734845223768,0.23008236,96289.0,96288.0,0.0011712]
[1734845223943,0.22808236,96289.0,96288.0,0.0001712]
[1734845224157,0.23008236,96289.0,96288.0,0.0001712]
[1734845224917,0.23008236,96289.0,96288.0,0.0767712]
[1734845225871,0.22908236,96289.0,96288.0,0.0767712]
[1734845226108,0.22808236,96289.0,96288.0,0.0767712]
[1734845226338,0.23008236,96289.0,96288.0,0.0767712]
[1734845226570,0.22708236,96289.0,96288.0,0.0767712]
[1734845226856,0.22708236,96289.0,96288.0,0.0001712]
[1734845227097,0.22708236,96289.0,96288.0,0.0051712]
[1734845227332,0.22708236,96289.0,96288.0,0.0031712]
[1734845227559,0.22708236,96289.0,96288.0,0.0011712]
[1734845227803,0.22708236,96289.0,96288.0,0.0031712]
[1734845229366,0.22908236,96289.0,96288.0,0.0031712]
[1734845229462,0.22708236,96289.0,96288.0,0.0031712]
[1734845229710,0.22708236,96289.0,96288.0,0.0001712]
[1734845229967,0.22808236,96289.0,96288.0,0.0001712]
[1734845230170,0.22808236,96289.0,96288.0,0.0011712]
[1734845230604,0.22808236,96289.0,96288.0,0.0001712]
[1734845231026,0.22808236,96289.0,96288.0,0.0011712]
[1734845231165,0.02037436,96289.0,96288.0,0.0011712]
[1734845231573,0.02037436,96289.0,96288.0,0.0001712]
[1734845232424,0.01937436,96289.0,96288.0,0.0001712]
[1734845232753,0.02037436,96289.0,96288.0,0.0001712]
[1734845233095,0.01937436,96289.0,96288.0,0.0001712]
[1734845233299,0.02037436,96289.0,96288.0,0.0011712]
[1734845233705,0.01937436,96289.0,96288.0,0.0011712]
[1734845233920,0.02037436,96289.0,96288.0,0.0001712]
[1734845234133,0.01937436,96289.0,96288.0,0.0021712]
[1734845234555,0.01937436,96289.0,96288.0,0.0031712]
[1734845235008,0.01937436,96289.0,96288.0,0.0011712]
[1734845235326,0.01937436,96289.0,96288.0,0.0031712]
[1734845235851,0.01937436,96289.0,96288.0,0.0021712]
[1734845236056,0.01937436,96289.0,96288.0,0.0031712]
[1734845239479,0.01937436,96289.0,96288.0,0.0495712]
[1734845242799,0.01937436,96289.0,96288.0,0.1287712]
[1734845243781,8.56e-05,96289.0,96288.0,0.1267712]
[1734845243981,8.56e-05,96289.0,96288.0,0.13843681]